{"text_format":"1","workbook":"xlsx","n_sheets":5,"sheets":["Info","Antragstammdaten","Tabelle1","Antragsberechtigung","Tooldaten"],"not_rendered":{"charts":0,"images":11,"macros":1,"external_links":0,"defined_names":3,"comments":1,"pivot_tables":0},"unopened":[],"bounds":{"document_bytes":16777216,"sheet_cells":100000,"rows_first":2000,"rows_last":500,"rows_between":2000,"halvings":0,"cell_chars":16384,"cell_head_chars":4096},"cells_cut":0,"cells_raw":0,"read":"whole","date_system":"1900"}

{"sheet":"Info","index":0,"n_rows":35,"n_cols":3,"rows_kept":35,"cut":false,"hidden":false,"merged":[[2,0,2,1],[27,2,28,3],[7,2,8,4],[13,2,14,4],[15,2,15,4],[16,2,16,4],[17,2,17,4],[22,2,23,4],[25,2,25,4],[4,2,6,4],[10,2,11,4],[29,2,29,4],[0,2,0,3],[1,2,1,3],[31,2,32,3],[31,4,32,4],[18,2,20,4],[24,2,24,4],[26,2,26,4],[30,2,30,4]]}
[null,null,{"$f":"Tooldaten!D5","v":"Tool zur Corona-Überbrückungshilfe Phase 2"}]
[]
[{"$f":"Tooldaten!D6","v":"V.1.1"}]
[null,{"$f":"\"Über \"&\"\"\"\"&Tooldaten!D5&\"\"\" \"","v":"Über \"Tool zur Corona-Überbrückungshilfe Phase 2\" "}]
[null,null,"Am 12. Juni 2020 hat die Bundesregierung die Eckpunkte für die „Überbrückungshilfe“ beschlossen und diese nach der 1. Phase (Förderzeitraum April-August 2020) um eine 2. Phase (Förderzeitraum September-Dezember 2020) verlängert.\nAntragsberechtigt für diese 2. Phase sind"]
[]
[]
[null,null,"n Unternehmen mit einem Umsatzeinbruch von mindestens 50% in zwei zusammenhängenden Monaten im Zeitraum April bis August 2020 gegenüber den jeweiligen Vorjahresmonaten"]
[]
[null,null,"oder "]
[null,null,"n Unternehmen mit einem Umsatzeinbruch von mindestens 30% im Durchschnitt in den Monaten April bis August 2020 gegenüber dem Vorjahreszeitraum"]
[]
[null,null,"oder "]
[null,null,"n Unternehmen mit stark saisonal bedingten Umsatzschwankungen, d.h. die im Zeitraum April bis August 2019 weniger als 15% des Jahresumsatzes 2019 erzielt haben."]
[]
[null,null,"Die Antragsstellung muss von einem vom Antragssteller beauftragten prüfenden Dritten durchgeführt werden. In der "]
[null,null,"FAQ-Liste des Bundes zur Überbrückungshilfe "]
[null,null,"ist definiert, wer dies im Einzelnen ist."]
[null,null,"Das Excel-Tool unterstützt Sie bei der Beantragung der Corona-Überbrückungshilfe für die 2. Phase. Prüfen Sie mit Hilfe der Datei die Antragsvoraussetzungen, und erfassen Sie die Umsatz- und Fixkostenschätzung für die Fördermonate. Profitieren Sie von einer automatischen Berechnung des Fördersatzes und der voraussichtlichen Förderhöhe."]
[]
[]
[null,"Hinweise"]
[null,null,"Zur Definition der antragsrelevanten Größen „Umsatz“ und „Fixkosten“ und zur Berechnung der Förderung beachten Sie die offiziellen Hinweise im Antragsportal. Hintergrundinformationen finden Sie im InfoDB-Dokument "]
[]
[null,null,"https://www.datev.de/info-db/1018037,"]
[null,null,"eine Anleitung zum Erfassen des Antrags finden Sie im InfoDB-Dokument"]
[null,null,"https://www.datev.de/info-db/1018195."]
[null,null,"Diese Dokumente werden regelmäßig an den aktuellen Informationsstand angepasst. Die hier dargestellte Berechnung erfolgt insoweit unter Vorbehalt."]
[]
[null,null,"Maßgeblich ist die Berechnung auf der Verfahrensplattform für die Überbrückungshilfe "]
[null,null,"(www.ueberbrueckungshilfe-unternehmen.de)."]
[null,null,"Bei der Berechnung der voraussichtlichen Förderhöhe mit dem „Tool zur Corona-Überbrückungshilfe“ findet insbesondere die FAQ-Liste des Bundes zur Überbrückungshilfe mit Stand vom 10.09.2020 Berücksichtigung."]
[]
[null,"Verbundene Unternehmen "]
[null,null,"Für verbundene Unternehmen ist insgesamt nur ein Antrag zu stellen. "]

{"sheet":"Antragstammdaten","index":1,"n_rows":52,"n_cols":5,"rows_kept":52,"cut":false,"hidden":false,"merged":[[2,0,2,1],[0,2,0,3],[1,2,1,3]]}
[null,null,{"$f":"Tooldaten!D5","v":"Tool zur Corona-Überbrückungshilfe Phase 2"}]
[]
[{"$f":"Tooldaten!D6","v":"V.1.1"}]
[null,"1. Antragsteller"]
[null,"1.1 Art des Mandats"]
[null,null,"Art des Mandats",null,"*"]
[]
[null,"1.2. Angaben zum Antragsteller"]
[null,null,"Anrede",null,"*"]
[null,null,"Titel"]
[null,null,"Vorname",null,"*"]
[null,null,"Nachname",null,"*"]
[null,null,"Name des Unternehmens",null,"*"]
[null,null,"Rechtsform",null,"*"]
[null,null,"Branche",null,"*"]
[null,null,"Handelsregisternummer"]
[null,null,"Amtsgericht"]
[null,null,"Branchenschlüssel",null,"*"]
[null,null,"Art des Unternehmens",null,"*"]
[]
[null,"1.3. Gemeinnützige Übernachtungsstätte"]
[null,null,"Name der Übernachtungsstätte"]
[null,null,"Straße und Hausnummer"]
[null,null,"Postleitzahl"]
[null,null,"Ort"]
[null,null,"Landkreis"]
[null,null,"Bundesland"]
[]
[null,"1.4. Steuer- und Finanzdaten"]
[null,null,"Umsatzsteuer Id.Nr."]
[null,null,"Steuernummer",null,"*"]
[null,null,"Steuerliche Identifikationsnummer",null,"*"]
[null,null,"Zuständiges Finanzamt",null,"*"]
[]
[null,"1.5. Adresse inländischer Sitz der Geschäftsführung"]
[null,null,"Straße und Hausnummer",null,"*"]
[null,null,"Postleitzahl",null,"*"]
[null,null,"Ort",null,"*"]
[null,null,"Landkreis",null,"*"]
[null,null,"Bundesland",null,"*"]
[]
[null,"1.6. Kontaktdaten"]
[null,null,"Telefon",null,"*"]
[null,null,"Fax",null,"*"]
[null,null,"E-Mail-Adresse",null,"*"]
[]
[null,"1.7. Beim Finanzamt hinterlegte Kontoverbindung"]
[null,null,"Kontoinhaber",null,"*"]
[null,null,"IBAN",null,"*"]
[null,null,"BIC",null,"*"]
[null,null,"Kreditinstitut"]
[null,null,"(mit * markierte Angaben sind im Online-Portal des BMWi verpflichtend anzugeben)"]

{"sheet":"Tabelle1","index":2,"n_rows":49,"n_cols":22,"rows_kept":49,"cut":false,"hidden":false,"merged":[[44,2,44,9],[43,2,43,9],[32,2,32,9],[12,10,12,13],[12,4,12,9],[23,2,23,9],[24,2,24,9],[25,2,25,9],[17,2,17,3],[27,2,27,9],[28,2,28,9],[29,2,29,9],[41,2,41,9],[33,2,33,9],[34,2,34,9],[35,2,35,9],[40,2,40,9],[1,2,1,11],[0,2,0,11],[31,2,31,9],[2,0,2,1],[30,2,30,9],[7,11,7,13]]}
[null,null,{"$f":"Tooldaten!D5","v":"Tool zur Corona-Überbrückungshilfe Phase 2"},null,null,null,null,null,null,null,null,null,null,null,null,null,null,"Auf U57 bis 67 achten",null,"saisonal:",false]
[]
[{"$f":"Tooldaten!D6","v":"V.1.1"}]
[null,"Antragstellung und Prüfung der Antragsvoraussetzungen (bis 31. Dezember 2020)"]
[null,null,null,null,null,null,null,null,null,null,null,null,null,null,null,null,0,null,null,null,0]
[null,null,null,null,"Beschäftigte zum 29. Februar 2020:  ","keine",null,null,null,null,null,null,null,"max. Förderung für vier Monate: ",200000,null,null,null,null,null,null,"Regelförderung (ggfs. gekappt max. mtl. 50.000 €)"]
[null,null,null,null,null,null,null,null,null,null,null,null,null,null,null,null,null,null,null,null,null,"Regelförderung (ggfs. gekappt max. mtl. 50.000 €)"]
[null,null,null,null,null,null,null,null,null,null,null,"Antragsnummer:",null,null,null,null,null,null,null,null,null,"Regelförderung (ggfs. gekappt max. mtl. 50.000 €)"]
[null,null,"Mindestens eine der folgenden Bedingungen muss für eine Förderung zutreffen:"]
[null,null,{"$f":"IF(J19<=-30,\"ü\",\"û\")","v":"û"},"einen durchschnittlichen Umsatzeinbruch von mindestens 30% in den Monaten April bis August"]
[null,null,{"$f":"IF(V19>0,\"ü\",\"û\")","v":"û"},"einen Umsatzeinbruch in Höhe von mindestens 50% in zwei zusammenhängenden Monaten",null,null,null,null,null,null,null,null,null,null,null,null,null,"Gründungsdatum:",null,null,{"$f":"V11-T11","v":43586},"2019-05-01"]
[null,null,null,null,null,null,null,null,null,null,null,null,null,null,null,null,null,null,null,null,{"$f":"V12-T11","v":43617},"2019-06-01"]
[null,null,null,null,"Antragsberechtigung",null,null,null,null,null,"Schätzung Förderzeitraum",null,null,null,"Förderung",null,null,"2-monatiger Einbruch:",null,{"$f":"IF(ISBLANK(T11),V19,IF(U11>0,V20,IF(U12>0,V21,V22)))","v":0}]
[null,null,null,null,"April","Mai","Juni","Juli","August","kumuliert","September","Oktober","November","Dezember","Antrag"]
[null,"1. Berechnung der Antragsberechtigung und Umsätze für den Förderzeitraum"]
[null,null,"Umsätze 2020",null,null,null,null,null,null,{"$f":"SUM(E16:I16)","v":0},null,null,null,null,{"$f":"SUM(K16:N16)","v":0},null,null,"Prüfungslogik:"]
[null,null,null,null,null,null,null,"November 2019","Dezember 2019",null,"September 2019","Oktober 2019","November 2019","Dezember 2019"]
[null,null,"Umsätze 2019",null,null,null,null,null,null,{"$f":"SUM(E18:I18)","v":0},null,null,null,null,{"$f":"SUM(K18:N18)","v":0},null,null,"Zwei aufeinander folgender Jahre mit mind. 50% Einbruch?",null,null,null,"Summe der Anzahl dieser zweimonatigen Einbrüche"]
[null,"=","Veränderung in %",null,{"$f":"AbweichungInProzent(E16,E18)","v":0},0,0,0,0,0,0,0,0,0,0,null,"fünf Monate:",{"$f":"IF(E18+F18 = 0, 0,IF((E16+F16)/(E18+F18)>0.5,0,1))","v":0},{"$f":"IF(F18+G18 = 0, 0,IF((F16+G16)/(F18+G18)>0.5,0,1))","v":0},{"$f":"IF(G18+H18 = 0, 0,IF((G16+H16)/(G18+H18)>0.5,0,1))","v":0},{"$f":"IF(H18+I18 = 0, 0,IF((H16+I16)/(H18+I18)>0.5,0,1))","v":0},{"$f":"SUM(R19:U19)","v":0}]
[null,null,"Jahresumsatz 2019",null,null,null,null,null,null,null,null,null,null,null,null,null,"vier Monate:",null,null,null,null,{"$f":"SUM(S19:U19)","v":0}]
[null,null,"Anteil von April bis August 2019 am Jahresumsatz 2019 in %",null,null,null,null,null,null,{"$f":"IF(J20<>0,(J18/J20)*100,\"\")","v":""},null,null,null,null,null,null,"drei Monate:",null,null,null,null,{"$f":"SUM(T19:U19)","v":0}]
[null,null,null,null,null,null,null,null,null,null,null,null,null,null,null,null,"zwei Monate:",null,null,null,null,{"$f":"U19","v":0}]
[null,"2. Ermittlung erstattungsfähiger Fixkosten"]
[null,"1.","Mieten und Pachten für Gebäude, Grundstücke und Räumlichkeiten, die in unmittelbarem Zusammenhang mit der Geschäftstätigkeit des Unternehmens stehen.\nKosten für Privaträume sind nicht förderfähig.",null,null,null,null,null,null,null,null,null,null,null,{"$f":"SUM(K24:N24)","v":0},null,null,null,null,null,null,{"$f":"IF(T11<V11,1,0)","v":1}]
[null,"2.","Weitere Mietkosten",null,null,null,null,null,null,null,null,null,null,null,{"$f":"SUM(K25:N25)","v":0},null,null,null,null,null,null,{"$f":"T11+1","v":"1900-01-01"}]
[null,"3.","Zinsaufwendungen für Kredite und Darlehen",null,null,null,null,null,null,null,null,null,null,null,0,null,null,null,null,null,null,{"$f":"V11+1","v":"2019-05-02"}]
[null,"4.","Finanzierungskostenanteil von Leasingraten",null,null,null,null,null,null,null,null,null,null,null,0]
[null,"5.","Ausgaben für notwendige Instandhaltung, Wartung oder Einlagerung von Anlagevermögen oder gemieteten Vermögensgegenständen, einschließlich der EDV ",null,null,null,null,null,null,null,null,null,null,null,0]
[null,"6.","Ausgaben für Elektrizität, Wasser, Heizung, Reinigung und Hygienemaßnahmen",null,null,null,null,null,null,null,null,null,null,null,0]
[null,"7.","Grundsteuern",null,null,null,null,null,null,null,null,null,null,null,0]
[null,"8.","Betriebliche Lizenzgebühren",null,null,null,null,null,null,null,null,null,null,null,0]
[null,"9.","Versicherungen, Abonnements und andere feste Ausgaben",null,null,null,null,null,null,null,null,null,null,null,0]
[null,"10.","Kosten für Steuerberater oder Wirtschaftsprüfer, die im Rahmen der Beantragung der Corona-Überbrückungshilfe anfallen",null,null,null,null,null,null,null,null,null,null,null,0]
[null,"11.","Personalaufwendungen",null,null,null,null,null,null,null,null,null,null,null,0]
[null,"12.","Kosten für Auszubildende",null,null,null,null,null,null,null,null,null,null,null,0]
[null,"13.","Um der besonderen Betroffenheit der Reisebüros angemessen Rechnung zu tragen, sind auch Provisionen, die Inhaber von Reisebüros den Reiseveranstaltern aufgrund Corona-bedingter Stornierungen zurückgezahlt haben, den Fixkosten nach Nr. 1 bis 12 gleichgestellt.",null,null,null,null,null,null,null,null,null,null,null,0]
[null,"= erstattungsfähige Fixkosten",null,null,null,null,null,null,null,null,{"$f":"SUM(K24:K36)","v":0},0,0,0]
[]
[]
[null,"3. Ermittlung der Förderung"]
[null,null,"Fördersatz (Erstattung der Fixkosten) in %",null,null,null,null,null,null,null,{"$f":"ErstattungInProzent(K19,$J19,$T13,$J21,$Q$5,$T11)","v":0},{"$f":"ErstattungInProzent(L19,$J19,$T13,$J21,$Q$5,$T11)","v":0},{"$f":"ErstattungInProzent(M19,$J19,$T13,$J21,$Q$5,$T11)","v":0},{"$f":"ErstattungInProzent(N19,$J19,$T13,$J21,$Q$5,$T11)","v":0}]
[null,null,"rechnerischer Erstattungsbetrag",null,null,null,null,null,null,null,{"$f":"K37*K41/100","v":0},{"$f":"L37*L41/100","v":0},{"$f":"M37*M41/100","v":0},{"$f":"N37*N41/100","v":0},{"$f":"SUM(K42:N42)","v":0}]
[null,"=","Regelförderung (ggfs. gekappt max. mtl. 50.000 €)",null,null,null,null,null,null,null,{"$f":"RegelFoerderung(K42,$O6)","v":0},{"$f":"RegelFoerderung(L42,$O6)","v":0},{"$f":"RegelFoerderung(M42,$O6)","v":0},{"$f":"RegelFoerderung(N42,$O6)","v":0},{"$f":"SUM(K43:N43)","v":0}]
[null,null,"nicht berücksichtigte Fixkosten",null,null,null,null,null,null,null,{"$f":"NichtBeruecksichtigteFixkosten(K37,K43,K41)","v":0},{"$f":"NichtBeruecksichtigteFixkosten(L37,L43,L41)","v":0},{"$f":"NichtBeruecksichtigteFixkosten(M37,M43,M41)","v":0},{"$f":"NichtBeruecksichtigteFixkosten(N37,N43,N41)","v":0}]
[null,null,"Erstattungssatz für nicht berücksichtigte Fixkosten in %",null,null,null,null,null,null,null,{"$f":"IF(U5<>3,ErstattungNichtBeruecksichtigteFixkosten(K44,K43,K19,K42),0)","v":0},{"$f":"IF(U5<>3,ErstattungNichtBeruecksichtigteFixkosten(L44,L43,L19,L42),0)","v":0},{"$f":"IF(U5<>3,ErstattungNichtBeruecksichtigteFixkosten(M44,M43,M19,M42),0)","v":0},{"$f":"IF(U5<>3,ErstattungNichtBeruecksichtigteFixkosten(N44,N43,N19,N42),0)","v":0}]
[null,null,"zusätzlicher förderfähiger Betrag bei Ausnahmefall",null,null,null,null,null,null,null,{"$f":"IF(U5<>3,K44*(K45/100),0)","v":0},{"$f":"IF(U5<>3,L44*L45/100,0)","v":0},{"$f":"IF(U5<>3,M44*M45/100,0)","v":0},{"$f":"IF(U5<>3,N44*N45/100,0)","v":0},{"$f":"SUM(K46:N46)","v":0}]
[null,"=","Förderung (ggfs. gekappt bei maximal mtl. 50.000 €)",null,null,null,null,null,null,null,{"$f":"ErstattbareFoerderung(K46,K43)","v":0},{"$f":"ErstattbareFoerderung(L46,L43)","v":0},{"$f":"ErstattbareFoerderung(M46,M43)","v":0},{"$f":"ErstattbareFoerderung(N46,N43)","v":0},{"$f":"SUM(K47:N47)","v":0}]
[null,"./.","andere anrechenbare Förderungen/Hilfen/Erstattungen",null,null,null,null,null,null,null,null,null,null,null,{"$f":"SUM(K48:N48)","v":0}]
[null,"=","Förderung",null,null,null,null,null,null,null,{"$f":"IF(K47-K48<0,0,K47-K48)","v":0},{"$f":"IF(L47-L48<0,0,L47-L48)","v":0},0,0,{"$f":"SUM(K49:N49)","v":0}]

{"sheet":"Antragsberechtigung","index":3,"n_rows":21,"n_cols":3,"rows_kept":21,"cut":false,"hidden":false,"merged":[[20,1,20,2]]}
["2. Bestätigung zur Antragsberechtigung"]
["2.1 Erklärung"]
[null,"Der Antragsteller qualifiziert sich nicht für den Wirtschaftsstabilisierungsfonds","Ja"]
[null,"Der Antragsteller ist als Unternehmen dauerhaft wirtschaftlich am Markt tätig","Ja"]
[null,"Bei dem Antragsteller handelt es sich nicht um ein öffentliches Unternehmen","Ja"]
[null,"Der Antragsteller war nicht bereits am 31. Dezember 2019 in Schwierigkeiten","Ja"]
[null,"Falls nicht zutreffend: Der Antragsteller war am 31. Dezember in Schwierigkeiten, in der Folge war jedoch zumindest vorübergehend kein Unternehmen in Schwierigkeiten"]
[null,"Falls nicht zutreffend: Der Antragsteller war am 31. Dezember in Schwierigkeiten, derzeit ist aber kein Unternehmen mehr in Schwierigkeiten"]
[null,"Der Einnahmenrückgang steht in Zusammenhang mit der Corona-Pandemie","Ja"]
[null,"Es handelt sich beim Antragsteller um einen Soloselbständigen bzw. einen Freiberufler","Nein"]
[null,"Falls zutreffend: Der Antragsteller übt seine selbstständige oder freiberufliche Tätigkeit im Haupterwerb aus"]
[]
["2.2 Anzahl der Mitarbeiter"]
[null,"Beschäftigte über 30 Stunden und Auszubildende"]
[null,"Beschäftigte bis 30 Stunden"]
[null,"Beschäftigte bis 20 Stunden"]
[null,"Beschäftigte auf 450 Euro-Basis"]
[null,"Gewichtete Summe der Mitarbeiter"]
[]
["2.3 Gründungsdatum"]
[null,"Das Unternehmen wurde vor dem 01.04.2019 gegründet."]

{"sheet":"Tooldaten","index":4,"n_rows":6,"n_cols":5,"rows_kept":6,"cut":false,"hidden":false,"merged":[]}
[]
[]
[]
[]
[null,null,"Tooltitel","Tool zur Corona-Überbrückungshilfe Phase 2"]
[null,null,"Version","V.1.1","auch bei frmAntragsberechtigung ändern"]